fUSD/lending_fUSD_20260108
["ID","MTS","AMOUNT","RATE_DAILY","PERIOD"]
[400900904,1767858641992,-222.56518343,0.00013778,2]
[400900906,1767858642002,-1173.0,0.00013808,2]
[400900908,1767858642011,-500.0,0.00013808,2]
[400900910,1767858642021,-500.0,0.00013808,2]
[400900912,1767858642030,-1000.0,0.00013829,2]
[400900914,1767858642039,-1000.0,0.00013851,2]
[400900916,1767858642048,-1173.0,0.00013862,2]
[400900918,1767858642058,-500.0,0.00013862,2]
[400900920,1767858642067,-500.0,0.00013862,2]
[400900922,1767858642076,-200.0,0.00013905,2]
[400900924,1767858642086,-1173.0,0.00013917,2]
[400900926,1767858642095,-500.0,0.00013917,2]
[400900928,1767858642106,-500.0,0.00013917,2]
[400900931,1767858642124,-1455.4475772,0.00013953,2]
[400900933,1767858642133,-1734.13,0.00013969,2]
[400900935,1767858642144,-1173.0,0.00013972,2]
[400900937,1767858642153,-500.0,0.00013972,2]
[400900939,1767858642164,-500.0,0.00013972,2]
[400900941,1767858642174,-1000.0,0.00014001,2]
[400900943,1767858642183,-1173.0,0.00014027,2]
[400900945,1767858642193,-500.0,0.00014027,2]
[400900947,1767858642203,-500.0,0.00014027,2]
[400900949,1767858642212,-1000.0,0.00014027,2]
[400900951,1767858642222,-15751.68873368,0.00014053,2]
[400900953,1767858642233,-1100.0,0.00014059,2]
[400900955,1767858642242,-166.66,0.00014069,2]
[400900957,1767858642252,-151.0,0.00014076,2]
[400900959,1767858642262,-157.22325972,0.00014076,2]
[400900962,1767858642271,-595.37131296,0.00014076,2]
[400900964,1767858642281,-217.15233878,0.00014076,2]
[400900966,1767858642290,-696.21,0.00014077,2]
[400900968,1767858642300,-1173.0,0.00014082,2]
[400900970,1767858642310,-500.0,0.00014082,2]
[400900972,1767858642320,-500.0,0.00014082,2]
[400900974,1767858642329,-7536.47,0.00014098,2]
[400900976,1767858642339,-500.0,0.00014114,2]
[400900978,1767858642349,-1173.0,0.00014136,2]
[400900980,1767858642359,-500.0,0.00014136,2]
[400900982,1767858642368,-500.0,0.00014136,2]
[400900984,1767858642377,-1000.0,0.00014137,2]
[400900986,1767858642387,-1173.0,0.00014191,2]
[400900988,1767858642397,-500.0,0.00014191,2]
[400900990,1767858642406,-471.85856957,0.00014191,2]
[400900992,1767858642416,-18319.69,0.00014213,2]
[400900994,1767858642430,-1734.13,0.00014243,2]
[400900996,1767858642439,-1173.0,0.00014246,2]
[400900998,1767858642449,-500.0,0.00014246,2]
[400901000,1767858642458,-1173.0,0.00014301,2]
[400901002,1767858642469,-500.0,0.00014301,2]
[400901004,1767858642479,-12660.66,0.00014336,2]
[400901007,1767858642489,-1173.0,0.00014356,2]
[400901009,1767858642500,-500.0,0.00014356,2]
[400901011,1767858642509,-265.32886279,0.00014363,2]
[400901013,1767858642519,-1173.0,0.0001441,2]
[400901015,1767858642528,-500.0,0.0001441,2]
[400901017,1767858642538,-755.75,0.00014429,2]
[400901019,1767858642547,-221.72177176,0.00014455,2]
[400901021,1767858642557,-1173.0,0.00014465,2]
[400901023,1767858642567,-392.21018207,0.00014465,2]
[400901025,1767858642577,-166.66,0.00014492,2]
[400901027,1767858642586,-433.0,0.00014502,2]
[400901029,1767858642596,-9999.99,0.00014504,2]
[400901031,1767858642606,-1734.13,0.00014517,2]
[400901033,1767858642616,-1173.0,0.0001452,2]
[400901035,1767858642626,-1173.0,0.00014575,2]
[400901037,1767858642636,-222.56518343,0.00014602,2]
[400901039,1767858642645,-587.0,0.00014612,2]
[400901041,1767858642655,-151.0,0.00014624,2]
[400901043,1767858642665,-617.40005154,0.00014624,2]
[400901046,1767858642674,-225.18697532,0.00014624,2]
[400901048,1767858642684,-1173.0,0.00014629,2]
[400901050,1767858642693,-1000.0,0.00014642,2]
[400901052,1767858642703,-2351.0,0.00014675,2]
[400901054,1767858642712,-1196.41648618,0.00014684,2]
[400901056,1767858642722,-15751.68873368,0.00014694,2]
[400901058,1767858642732,-1000.0,0.00014721,2]
[400901060,1767858642741,-1000.0,0.00014726,2]
[400901062,1767858642751,-2351.0,0.00014729,2]
[400901064,1767858642761,-500.0,0.00014749,2]
[400901066,1767858642771,-363.73176274,0.00014749,2]
[400901068,1767858642780,-1100.0,0.00014762,2]
[400901070,1767858642790,-500.0,0.00014763,2]
[400901072,1767858642800,-500.0,0.00014763,2]
[400901074,1767858642809,-500.0,0.00014763,2]
[400901076,1767858642819,-415.93260674,0.00014763,2]
[400901078,1767858642828,-500.0,0.00014763,2]
[400901080,1767858642838,-500.0,0.00014763,2]
[400901083,1767858642847,-500.0,0.00014763,2]
[400901085,1767858642857,-500.0,0.00014763,2]
[400901087,1767858642866,-166.61911688,0.00014763,2]
[400901089,1767858642876,-500.0,0.00014763,2]
[400901091,1767858642886,-500.0,0.00014763,2]
[400901093,1767858642895,-500.0,0.00014763,2]
[400901095,1767858642904,-500.0,0.00014763,2]
[400901097,1767858642914,-500.0,0.00014763,2]
[400901099,1767858642924,-500.0,0.00014763,2]
[400901101,1767858642934,-500.44132788,0.00014763,2]
[400901103,1767858642945,-500.0,0.00014763,2]
[400901105,1767858642954,-500.0,0.00014763,2]
[400901107,1767858642964,-500.0,0.00014763,2]
[400901109,1767858642974,-332.64752003,0.00014763,2]
[400901111,1767858642984,-486.22003068,0.00014763,2]
[400901113,1767858642994,-500.0,0.00014763,2]
[400901115,1767858643003,-500.0,0.00014763,2]
[400901117,1767858643013,-500.0,0.00014763,2]
[400901120,1767858643023,-500.0,0.00014763,2]
[400901122,1767858643033,-500.0,0.00014763,2]
[400901124,1767858643042,-500.3780208,0.00014763,2]
[400901126,1767858643051,-237.35203595,0.00014763,2]
[400901128,1767858643060,-500.0,0.00014763,2]
[400901130,1767858643070,-500.0,0.00014763,2]
[400901132,1767858643079,-500.0,0.00014763,2]
[400901134,1767858643089,-165.70843486,0.00014763,2]
[400901136,1767858643098,-500.0,0.00014763,2]
[400901138,1767858643107,-438.84534231,0.00014763,2]
[400901140,1767858643118,-500.0,0.00014763,2]
[400901142,1767858643128,-500.0,0.00014763,2]
[400901144,1767858643137,-451.90263959,0.0001478,2]
[400901146,1767858643147,-696.21,0.00014781,2]
[400901148,1767858643156,-1734.13,0.00014791,2]
[400901150,1767858643166,-1754.27554981,0.00014851,2]
[400901152,1767858643175,-173.84870699,0.00014851,2]
[400901154,1767858643186,-334.5472959,0.00014897,2]
[400901156,1767858643195,-642.94,0.00014897,2]
[400901158,1767858643205,-166.66,0.00014914,2]
[400901160,1767858643214,-1000.0,0.00015031,2]
[400901162,1767858643225,-1734.13,0.00015065,2]
[400901164,1767858643234,-500.0,0.00015068,2]
[400901165,1767858643244,-654.79,0.00015068,2]
[400901166,1767858643254,-500.0,0.00015099,2]
[400901167,1767858643263,-1000.0,0.00015113,2]
[400901168,1767858643273,-500.0,0.00015123,2]
[400901169,1767858643283,-600.0,0.0001513,2]
[400901170,1767858643292,-240.4,0.0001513,2]
[400901171,1767858643301,-175.29912762,0.00015172,2]
[400901172,1767858643311,-640.24385345,0.00015172,2]
[400901173,1767858643321,-263.14162042,0.00015172,2]
[400901174,1767858643331,-522.31501888,0.00015178,2]
[400901175,1767858643340,-707.02807282,0.00015184,2]
[400901176,1767858643350,-1000.0,0.00015186,2]
[400901178,1767858643360,-360.97,0.00015188,2]
[400901179,1767858643369,-1000.0,0.00015208,2]
[400901182,1767858643379,-1000.0,0.00015217,2]
[400901183,1767858643388,-151.0,0.00015238,2]
[400901185,1767858643397,-151.0,0.00015244,2]
[400901187,1767858643406,-151.0,0.00015245,2]
[400901189,1767858643416,-500.0,0.00015291,2]
[400901192,1767858643431,-212.65120656,0.0001531,2]
[400901194,1767858643440,-412.45872532,0.0001531,2]
[400901195,1767858643449,-1000.0,0.0001531,2]
[400901198,1767858643459,-1000.0,0.0001531,2]
[400901200,1767858643470,-1000.0,0.0001531,2]
[400901201,1767858643480,-1000.0,0.0001531,2]
[400901204,1767858643490,-1000.0,0.0001531,2]
[400901206,1767858643501,-1000.0,0.0001531,2]
[400901208,1767858643511,-1000.0,0.0001531,2]
[400901210,1767858643520,-1000.0,0.0001531,2]
[400901212,1767858643530,-503.33948311,0.0001531,2]
[400901214,1767858643539,-1000.0,0.0001531,2]
[400901216,1767858643550,-1056.63084022,0.0001531,2]
[400901218,1767858643560,-1000.0,0.0001531,2]
[400901220,1767858643570,-913.69875704,0.0001531,2]
[400901222,1767858643579,-1000.0,0.0001531,2]
[400901224,1767858643589,-1000.0,0.0001531,2]
[400901226,1767858643599,-1000.0,0.0001531,2]
[400901228,1767858643609,-1000.0,0.0001531,2]
[400901230,1767858643619,-1000.0,0.0001531,2]
[400901232,1767858643628,-1000.0,0.0001531,2]
[400901234,1767858643638,-1000.0,0.0001531,2]
[400901236,1767858643647,-312.00908556,0.0001531,2]
[400901238,1767858643657,-1000.0,0.0001531,2]
[400901240,1767858643666,-1000.0,0.0001531,2]
[400901242,1767858643676,-1000.0,0.0001531,2]
[400901244,1767858643685,-1000.0,0.0001531,2]
[400901246,1767858643695,-15751.68873368,0.00015335,2]
[400901248,1767858643704,-1734.13,0.00015339,2]
[400901250,1767858643714,-250.37623937,0.00015427,2]
[400901252,1767858643723,-222.56518343,0.00015427,2]
[400901254,1767858643733,-1000.0,0.00015458,2]
[400901256,1767858643742,-696.21,0.00015485,2]
[400901258,1767858643752,-1100.0,0.000155,2]
[400901260,1767858643761,-348.59,0.00015611,2]
[400901262,1767858643771,-1734.13,0.00015613,2]
[400901264,1767858643780,-1000.0,0.00015644,2]
[400901266,1767858643790,-1046.13808908,0.0001568,2]
[400901268,1767858643799,-1190.21495842,0.0001568,2]
[400901270,1767858643809,-663.93287602,0.0001572,2]
[400901272,1767858643818,-736.0,0.00015786,2]
[400901274,1767858643828,-1000.0,0.00015825,2]
[400901276,1767858643850,-322.81176918,0.00015858,2]
[400901278,1767858643860,-1500.0,0.00015858,2]
[400901280,1767858643869,-1453.03832283,0.00015858,2]
[400901282,1767858643878,-1030.62564826,0.00015858,2]
[400901284,1767858643888,-1500.0,0.00015858,2]
[400901286,1767858643898,-485.97149483,0.00015858,2]
[400901288,1767858643908,-509.92734084,0.00015858,2]
[400901291,1767858643925,-1500.0,0.00015858,2]
[400901292,1767858643943,-1500.0,0.00015858,2]
[400901295,1767858643953,-1011.09296657,0.00015858,2]
[400901297,1767858643962,-1500.0,0.00015858,2]
[400901299,1767858643972,-1500.0,0.00015858,2]
[400901301,1767858643981,-1500.0,0.00015858,2]
[400901302,1767858643997,-1500.0,0.00015858,2]
[400901305,1767858644018,-1500.0,0.00015858,2]
[400901306,1767858644031,-658.23019616,0.00015858,2]
[400901308,1767858644040,-1629.4325829,0.00015858,2]
[400901311,1767858644050,-1500.0,0.00015858,2]
[400901313,1767858644059,-1500.0,0.00015858,2]
[400901315,1767858644068,-501.84542925,0.00015858,2]
[400901317,1767858644078,-1500.0,0.00015858,2]
[400901319,1767858644088,-1000.0,0.00015865,2]
[400901321,1767858644099,-1000.0,0.00015866,2]
[400901323,1767858644109,-755.75,0.00015872,2]
[400901325,1767858644119,-1734.13,0.00015887,2]
[400901327,1767858644129,-6005.05797759,0.000159,2]
[400901329,1767858644139,-15751.68873368,0.00015976,2]
[400901332,1767858644148,-500.0,0.00015999,2]
[400901335,1767858644159,-156.0,0.00016,2]
[400901338,1767858644170,-200.0,0.00016,2]
[400901341,1767858644180,-1000.0,0.00016014,2]
[400901344,1767858644191,-737.13729626,0.00016016,2]
[400901348,1767858644200,-160.59693299,0.00016016,2]
[400901351,1767858644210,-666.83763646,0.00016018,2]
[400901353,1767858644220,-250.0,0.00016026,2]
[400901355,1767858644230,-823.0,0.00016039,2]
[400901357,1767858644239,-116110.45520161,0.000161,2]
[400901463,1767858645228,-166983.3131758,0.000161,2]
[400901465,1767858645238,-9999.99,0.00016116,2]
[400901467,1767858645248,-3292.0,0.00016142,2]
[400901469,1767858645261,-600.0,0.00016147,2]
[400901471,1767858645273,-240.4,0.00016147,2]
[400901473,1767858645282,-1734.13,0.00016161,2]
[400901475,1767858645291,-394.0,0.00016166,2]
[400901477,1767858645301,-696.21,0.00016188,2]
[400901479,1767858645310,-360.97,0.00016197,2]
[400901481,1767858645320,-150.0,0.000162,2]
[400901483,1767858645329,-150.0,0.00016246,2]
[400901485,1767858645339,-250.37623937,0.00016251,2]
[400901487,1767858645348,-222.56518343,0.00016251,2]
[400901489,1767858645357,-1000.0,0.00016259,2]
[400901491,1767858645366,-346.92554585,0.00016266,2]
[400901493,1767858645376,-666.72878,0.00016266,2]
[400901495,1767858645385,-599.60298507,0.00016267,2]
[400901497,1767858645394,-688.49839244,0.00016268,2]
[400901499,1767858645403,-1100.0,0.00016275,2]
[400901501,1767858645413,-150.0,0.00016292,2]
[400901503,1767858645425,-157.72323008,0.00016306,2]
[400901505,1767858645435,-150.0,0.00016338,2]
[400901507,1767858645445,-1000.0,0.0001635,2]
[400901509,1767858645454,-500.0,0.00016356,2]
[400901511,1767858645464,-1000.0,0.00016374,2]
[400901513,1767858645473,-150.0,0.00016385,2]
[400901515,1767858645483,-160.59693296,0.00016393,2]
[400901517,1767858645493,-162.0,0.000164,2]
[400901519,1767858645503,-833.0,0.000164,2]
[400901521,1767858645513,-162.0,0.000164,2]
[400901523,1767858645522,-833.0,0.000164,2]
[400901525,1767858645532,-162.0,0.000164,2]
[400901527,1767858645542,-833.0,0.000164,2]
[400901529,1767858645551,-162.0,0.000164,2]
[400901531,1767858645561,-833.0,0.000164,2]
[400901533,1767858645570,-504.82287623,0.00016406,2]
[400901535,1767858645580,-2000.0,0.00016406,2]
[400901537,1767858645589,-2000.0,0.00016406,2]
[400901539,1767858645600,-2000.0,0.00016406,2]
[400901541,1767858645609,-377.66780599,0.00016406,2]
[400901543,1767858645618,-2000.0,0.00016406,2]
[400901545,1767858645628,-2000.0,0.00016406,2]
[400901547,1767858645638,-2000.0,0.00016406,2]
[400901549,1767858645647,-165.71915277,0.00016406,2]
[400901551,1767858645657,-2000.0,0.00016406,2]
[400901553,1767858645667,-2000.0,0.00016406,2]
[400901555,1767858645676,-2000.0,0.00016406,2]
[400901557,1767858645685,-150.0,0.00016431,2]
[400901559,1767858645694,-1734.13,0.00016435,2]
[400901561,1767858645704,-500.0,0.00016437,2]
[400901563,1767858645712,-2038.40901109,0.00016438,2]
[400901565,1767858645721,-2038.40901109,0.00016438,2]
[400901567,1767858645730,-2038.40901109,0.00016438,2]
[400901569,1767858645740,-2038.40901109,0.00016438,2]
[400901571,1767858645749,-2038.40901109,0.00016438,2]
[400901573,1767858645760,-2038.40901109,0.00016438,2]
[400901575,1767858645769,-2038.40901109,0.00016438,2]
[400901577,1767858645779,-2038.40901109,0.00016438,2]
[400901579,1767858645788,-2038.40901109,0.00016438,2]
[400901581,1767858645797,-2038.40901109,0.00016438,2]
[400901583,1767858645806,-2038.40901109,0.00016438,2]
[400901586,1767858645815,-2038.40901109,0.00016438,2]
[400901588,1767858645824,-2038.40901109,0.00016438,2]
[400901591,1767858645833,-2038.40901109,0.00016438,2]
[400901593,1767858645842,-2038.40901109,0.00016438,2]
[400901595,1767858645851,-2038.40901109,0.00016438,2]
[400901597,1767858645862,-2038.40901109,0.00016438,2]
[400901599,1767858645871,-2038.40901109,0.00016438,2]
[400901602,1767858645881,-2038.40901109,0.00016438,2]
[400901605,1767858645890,-2038.40901109,0.00016438,2]
[400901608,1767858645899,-2038.40901109,0.00016438,2]
[400901611,1767858645908,-2038.40901109,0.00016438,2]
[400901614,1767858645917,-2038.40901109,0.00016438,2]
[400901617,1767858645926,-2038.40901109,0.00016438,2]
[400901619,1767858645936,-2038.40901109,0.00016438,2]
[400901621,1767858645945,-2038.40901109,0.00016438,2]
[400901623,1767858645955,-2038.40901109,0.00016438,2]
[400901625,1767858645964,-2038.40901109,0.00016438,2]
[400901627,1767858645974,-2038.40901109,0.00016438,2]
[400901629,1767858645983,-2038.40901109,0.00016438,2]
[400901631,1767858645992,-2038.40901109,0.00016438,2]
[400901633,1767858646001,-2038.40901109,0.00016438,2]
[400901635,1767858646011,-2038.40901109,0.00016438,2]
[400901637,1767858646020,-2038.40901109,0.00016438,2]
[400901639,1767858646030,-2038.40901109,0.00016438,2]
[400901641,1767858646039,-2038.40901109,0.00016438,2]
[400901642,1767858646049,-2038.40901109,0.00016438,2]
[400901643,1767858646058,-2038.40901109,0.00016438,2]
[400901644,1767858646068,-2038.40901109,0.00016438,2]
[400901645,1767858646077,-2038.40901109,0.00016438,2]
[400901646,1767858646088,-2038.40901109,0.00016438,2]
[400901647,1767858646097,-2038.40901109,0.00016438,2]
[400901648,1767858646106,-2038.40901109,0.00016438,2]
[400901649,1767858646116,-2038.40901109,0.00016438,2]
[400901650,1767858646125,-2038.40901109,0.00016438,2]
[400901651,1767858646135,-2038.40901109,0.00016438,2]
[400901652,1767858646144,-2038.40901109,0.00016438,2]
[400901653,1767858646153,-2005.22560858,0.00016438,2]
[400901655,1767858646163,-2005.22560858,0.00016438,2]
[400901657,1767858646172,-2005.22560858,0.00016438,2]
[400901659,1767858646181,-2005.22560858,0.00016438,2]
[400901661,1767858646190,-2005.22560858,0.00016438,2]
[400901663,1767858646199,-2005.22560858,0.00016438,2]
[400901665,1767858646208,-2005.22560858,0.00016438,2]
[400901667,1767858646218,-2005.22560858,0.00016438,2]
[400901669,1767858646227,-2005.22560858,0.00016438,2]
[400901671,1767858646236,-2005.22560858,0.00016438,2]
[400901673,1767858646245,-2005.22560858,0.00016438,2]
[400901675,1767858646255,-2005.22560858,0.00016438,2]
[400901677,1767858646264,-2005.22560858,0.00016438,2]
[400901679,1767858646273,-2005.22560858,0.00016438,2]
[400901681,1767858646282,-2005.22560858,0.00016438,2]
[400901683,1767858646292,-2005.22560858,0.00016438,2]
[400901685,1767858646301,-2005.22560858,0.00016438,2]
[400901687,1767858646311,-2005.22560858,0.00016438,2]
[400901689,1767858646320,-2005.22560858,0.00016438,2]
[400901691,1767858646329,-2005.22560858,0.00016438,2]
[400901693,1767858646338,-2005.22560858,0.00016438,2]
[400901695,1767858646347,-2005.22560858,0.00016438,2]
[400901697,1767858646356,-2005.22560858,0.00016438,2]
[400901699,1767858646366,-2005.22560858,0.00016438,2]
[400901701,1767858646375,-2005.22560858,0.00016438,2]
[400901703,1767858646385,-2005.22560858,0.00016438,2]
[400901705,1767858646395,-2005.22560858,0.00016438,2]
[400901707,1767858646404,-2005.22560858,0.00016438,2]
[400901709,1767858646413,-2005.22560858,0.00016438,2]
[400901711,1767858646423,-2005.22560858,0.00016438,2]
[400901713,1767858646434,-2005.22560858,0.00016438,2]
[400901715,1767858646444,-2005.22560858,0.00016438,2]
[400901717,1767858646453,-2005.22560858,0.00016438,2]
[400901719,1767858646462,-2005.22560856,0.00016438,2]
[400901721,1767858646473,-2005.22560856,0.00016438,2]
[400901723,1767858646483,-2005.22560856,0.00016438,2]
[400901725,1767858646492,-2005.22560856,0.00016438,2]
[400901727,1767858646502,-2005.22560856,0.00016438,2]
[400901729,1767858646513,-2005.22560856,0.00016438,2]
[400901731,1767858646523,-2005.22560856,0.00016438,2]
[400901734,1767858646532,-2005.22560856,0.00016438,2]
[400901736,1767858646541,-2005.22560856,0.00016438,2]
[400901738,1767858646552,-500.0,0.00016438,2]
[400901740,1767858646562,-654.79,0.00016438,2]
[400901742,1767858646572,-800.0,0.00016438,2]
[400901744,1767858646582,-21086.94,0.00016438,2]
[400901746,1767858646591,-150.0,0.00016477,2]
[400901748,1767858646601,-500.0,0.00016493,2]
[400901749,1767858646610,-150.0,0.00016523,2]
[400901752,1767858646625,-500.0,0.00016548,2]
[400901753,1767858646635,-150.0,0.00016569,2]
[400901756,1767858646645,-1000.0,0.00016575,2]
[400901758,1767858646655,-195.08159117,0.00016602,2]
[400901759,1767858646665,-150.0,0.00016615,2]
[400901762,1767858646675,-15751.68873368,0.00016618,2]
[400901764,1767858646685,-304.30680198,0.00016624,2]
[400901765,1767858646695,-1000.0,0.00016645,2]
[400901767,1767858646704,-150.0,0.00016662,2]
[400901769,1767858646713,-150.0,0.00016708,2]
[400901772,1767858646723,-1734.13,0.00016709,2]
[400901774,1767858646732,-162.0,0.0001672,2]
[400901776,1767858646742,-162.0,0.0001672,2]
[400901778,1767858646752,-833.0,0.0001672,2]
[400901780,1767858646761,-162.0,0.0001672,2]
[400901782,1767858646770,-552.0,0.0001672,2]
[400901784,1767858646779,-150.0,0.00016754,2]
[400901786,1767858646789,-160.59693296,0.0001677,2]
[400901788,1767858646798,-150.0,0.000168,2]
[400901790,1767858646808,-713.97283296,0.00016816,2]
[400901792,1767858646817,-150.0,0.00016846,2]
[400901794,1767858646826,-157.72323008,0.0001685,2]
[400901796,1767858646835,-180.0,0.00016864,2]
[400901798,1767858646845,-696.21,0.00016892,2]
[400901800,1767858646854,-150.0,0.00016892,2]
[400901802,1767858646863,-871.74370939,0.00016912,2]
[400901804,1767858646873,-150.0,0.00016938,2]
[400901806,1767858646882,-2500.0,0.00016954,2]
[400901808,1767858646891,-1505.81602002,0.00016954,2]
[400901810,1767858646901,-2356.56087805,0.00016954,2]
[400901812,1767858646910,-2500.0,0.00016954,2]
[400901814,1767858646919,-2181.44262662,0.00016954,2]
[400901816,1767858646929,-2500.0,0.00016954,2]
[400901818,1767858646938,-2500.0,0.00016954,2]
[400901820,1767858646948,-2500.0,0.00016954,2]
[400901822,1767858646957,-2500.0,0.00016954,2]
[400901824,1767858646966,-737.13729626,0.00016958,2]
[400901826,1767858646975,-1734.13,0.00016983,2]
[400901828,1767858646984,-150.0,0.00016985,2]
[400901830,1767858646994,-250.0,0.00017,2]
[400901832,1767858647003,-1000.0,0.00017,2]
[400901834,1767858647012,-150.0,0.00017009,2]
[400901836,1767858647021,-150.0,0.00017031,2]
[400901838,1767858647030,-1000.0,0.00017036,2]
[400901839,1767858647039,-833.0,0.0001704,2]
[400901841,1767858647049,-162.0,0.0001704,2]
[400901843,1767858647058,-162.0,0.0001704,2]
[400901846,1767858647068,-162.0,0.0001704,2]
[400901848,1767858647077,-162.0,0.0001704,2]
[400901850,1767858647086,-833.0,0.0001704,2]
[400901852,1767858647096,-170.49335927,0.00017052,2]
[400901854,1767858647106,-1000.0,0.00017056,2]
[400901855,1767858647115,-1000.0,0.00017066,2]
[400901857,1767858647124,-250.37623937,0.00017076,2]
[400901860,1767858647134,-222.56518343,0.00017076,2]
[400901861,1767858647143,-150.0,0.00017077,2]
[400901864,1767858647152,-1100.0,0.00017089,2]
[400901866,1767858647162,-20452.74518303,0.000171,2]
[400901867,1767858647171,-150.0,0.00017123,2]
[400901870,1767858647181,-5242.82669963,0.00017124,2]
[400901872,1767858647191,-160.59693296,0.00017146,2]
[400901874,1767858647200,-2276.96201759,0.00017163,2]
[400901876,1767858647211,-150.0,0.00017169,2]
[400901878,1767858647220,-200.0,0.00017174,2]
[400901880,1767858647229,-885.0,0.00017177,2]
[400901882,1767858647238,-1000.0,0.00017186,2]
[400901884,1767858647248,-1252.0,0.00017193,2]
[400901886,1767858647257,-1000.0,0.00017199,2]
[400901888,1767858647266,-1000.0,0.000172,2]
[400901889,1767858647275,-500.0,0.00017205,2]
[400901891,1767858647285,-1000.0,0.00017214,2]
[400901893,1767858647294,-150.0,0.00017215,2]
[400901895,1767858647303,-300.0,0.00017218,2]
[400901897,1767858647312,-373.51,0.00017221,2]
[400901899,1767858647321,-150.0,0.0001723,2]
[400901902,1767858647332,-885.0,0.00017252,2]
[400901903,1767858647342,-160.43,0.00017256,2]
[400901905,1767858647353,-1734.28859706,0.00017257,2]
[400901907,1767858647362,-15751.68873368,0.00017259,2]
[400901908,1767858647372,-150.0,0.00017262,2]
[400901910,1767858647381,-500.0,0.00017269,2]
[400901912,1767858647390,-373.51,0.00017278,2]
[400901914,1767858647401,-300.0,0.00017281,2]
[400901915,1767858647410,-300.0,0.00017282,2]
[400901917,1767858647422,-160.43,0.00017306,2]
[400901919,1767858647431,-1000.0,0.00017306,2]
[400901920,1767858647439,-150.0,0.00017308,2]
[400901922,1767858647449,-755.75,0.00017315,2]
[400901924,1767858647459,-885.0,0.00017327,2]
[400901925,1767858647468,-373.51,0.00017336,2]
[400901927,1767858647477,-469.50438451,0.00017345,2]
[400901929,1767858647487,-150.0,0.00017354,2]
[400901930,1767858647497,-160.42360576,0.00017356,2]
[400901932,1767858647506,-162.0,0.0001736,2]
[400901934,1767858647516,-833.0,0.0001736,2]
[400901936,1767858647525,-833.0,0.0001736,2]
[400901937,1767858647534,-833.0,0.0001736,2]
[400901939,1767858647544,-833.0,0.0001736,2]
[400901941,1767858647553,-162.0,0.0001736,2]
[400901942,1767858647562,-833.0,0.0001736,2]
[400901944,1767858647572,-833.0,0.0001736,2]
[400901946,1767858647582,-833.0,0.0001736,2]
[400901948,1767858647591,-162.0,0.0001736,2]
[400901949,1767858647600,-740.38982778,0.00017364,2]
[400901951,1767858647610,-300.0,0.00017369,2]
[400901953,1767858647620,-500.0,0.0001737,2]
[400901955,1767858647630,-1000.0,0.00017379,2]
[400901957,1767858647641,-1000.0,0.00017381,2]
[400901958,1767858647659,-300.0,0.00017386,2]
[400901960,1767858647678,-300.0,0.00017389,2]
[400901962,1767858647687,-157.72323008,0.00017393,2]
[400901963,1767858647697,-5888.0,0.00017395,2]
[400901965,1767858647706,-300.0,0.00017396,2]
[400901967,1767858647716,-150.0,0.000174,2]
[400901969,1767858647726,-885.0,0.00017401,2]
[400901971,1767858647735,-300.0,0.00017404,2]
[400901973,1767858647744,-300.0,0.00017406,2]
[400901974,1767858647754,-300.0,0.00017409,2]
[400901999,1767858648029,-300.0,0.00017409,2]
[400902001,1767858648052,-300.0,0.00017413,2]
[400902003,1767858648061,-300.0,0.00017416,2]
[400902005,1767858648071,-300.0,0.00017421,2]
[400902007,1767858648080,-300.0,0.00017422,2]
[400902008,1767858648089,-150.0,0.00017422,2]
[400902010,1767858648099,-300.0,0.00017429,2]
[400902012,1767858648108,-150.0,0.00017446,2]
[400902014,1767858648117,-300.0,0.00017448,2]
[400902016,1767858648126,-300.0,0.00017454,2]